fUST/lending_fUST_20250628
["ID","MTS","AMOUNT","RATE_DAILY","PERIOD"]
[368224917,1751067045497,-151.36624201,0.00019315,2]
[368224918,1751067045506,-151.0,0.00019315,2]
[368224919,1751067045516,-500.0,0.00019315,2]
[368224920,1751067045525,-151.0,0.00019315,2]
[368224921,1751067045535,-500.0,0.00019315,2]
[368224922,1751067045544,-198.55525248,0.00019315,2]
[368224923,1751067045553,-151.0,0.00019315,2]
[368224924,1751067045564,-151.0,0.00019315,2]
[368224925,1751067045574,-151.0,0.00019315,2]
[368224926,1751067045583,-500.0,0.00019315,2]
[368224927,1751067045593,-151.0,0.00019315,2]
[368224928,1751067045603,-500.0,0.00019315,2]
[368224929,1751067045612,-168.73710564,0.00019315,2]
[368224930,1751067045622,-500.0,0.00019315,2]
[368224931,1751067045631,-151.0,0.00019315,2]
[368224932,1751067045641,-151.0,0.00019315,2]
[368224933,1751067045651,-151.0,0.00019315,2]
[368224934,1751067045660,-151.0,0.00019342,2]
[368224935,1751067045670,-503.0856224,0.00019342,2]
[368224936,1751067045680,-500.0,0.00019342,2]
[368224937,1751067045690,-151.0,0.00019342,2]
[368224938,1751067045700,-151.0,0.00019342,2]
[368224939,1751067045710,-151.0,0.00019342,2]
[368224940,1751067045719,-500.0,0.00019342,2]
[368224941,1751067045728,-151.0,0.00019342,2]
[368224942,1751067045738,-500.0,0.00019342,2]
[368224943,1751067045747,-500.0,0.00019342,2]
[368224944,1751067045757,-151.0,0.00019342,2]
[368224945,1751067045766,-254.80061498,0.00019342,2]
[368224946,1751067045775,-441.34223841,0.00019362,2]
[368224947,1751067045784,-151.0,0.0001937,2]
[368224948,1751067045793,-500.0,0.0001937,2]
[368224949,1751067045803,-151.0,0.0001937,2]
[368224950,1751067045813,-622.36814974,0.0001937,2]
[368224951,1751067045822,-198.0,0.0001937,2]
[368224952,1751067045831,-500.0,0.0001937,2]
[368224953,1751067045840,-500.0,0.0001937,2]
[368224955,1751067045850,-313.0,0.00019391,2]
[368224957,1751067045859,-151.0,0.00019397,2]
[368224958,1751067045869,-500.0,0.00019397,2]
[368224959,1751067045878,-151.0,0.00019397,2]
[368224961,1751067045888,-500.0,0.00019397,2]
[368224963,1751067045897,-463.58157554,0.00019397,2]
[368224964,1751067045906,-151.0,0.00019425,2]
[368224965,1751067045916,-500.0,0.00019425,2]
[368224966,1751067045926,-151.0,0.00019425,2]
[368224968,1751067045935,-196.91395842,0.00019425,2]
[368224969,1751067045944,-245.0,0.00019452,2]
[368224970,1751067045953,-500.0,0.00019452,2]
[368224971,1751067045963,-245.0,0.00019452,2]
[368224972,1751067045972,-460.0,0.00019452,2]
[368224973,1751067045981,-460.0,0.00019452,2]
[368224974,1751067045991,-251.50957599,0.00019452,2]
[368224975,1751067046000,-510.99310834,0.00019452,2]
[368224976,1751067046010,-460.0,0.00019452,2]
[368224977,1751067046020,-460.0,0.00019452,2]
[368224979,1751067046029,-460.0,0.00019452,2]
[368224981,1751067046039,-482.58,0.00019452,2]
[368224983,1751067046048,-460.0,0.00019452,2]
[368224985,1751067046057,-460.0,0.00019452,2]
[368224987,1751067046066,-460.0,0.00019452,2]
[368224989,1751067046076,-460.0,0.00019452,2]
[368224991,1751067046085,-460.0,0.00019452,2]
[368224993,1751067046094,-460.0,0.00019452,2]
[368224994,1751067046103,-460.0,0.00019452,2]
[368224995,1751067046119,-460.0,0.00019452,2]
[368224997,1751067046129,-460.0,0.00019452,2]
[368224999,1751067046138,-254.26203425,0.00019452,2]
[368225001,1751067046147,-460.0,0.00019452,2]
[368225003,1751067046156,-460.0,0.00019452,2]
[368225005,1751067046166,-460.0,0.00019452,2]
[368225007,1751067046175,-460.0,0.00019452,2]
[368225009,1751067046184,-460.0,0.00019452,2]
[368225011,1751067046193,-289.81466949,0.00019452,2]
[368225013,1751067046202,-460.0,0.00019452,2]
[368225015,1751067046212,-460.0,0.00019452,2]
[368225017,1751067046221,-460.0,0.00019452,2]
[368225019,1751067046230,-460.0,0.00019452,2]
[368225021,1751067046240,-460.0,0.00019452,2]
[368225022,1751067046249,-460.0,0.00019452,2]
[368225024,1751067046260,-460.0,0.00019452,2]
[368225026,1751067046270,-500.0,0.00019452,2]
[368225028,1751067046279,-910.72,0.00019452,2]
[368225030,1751067046288,-552.62,0.00019452,2]
[368225032,1751067046297,-460.0,0.00019452,2]
[368225034,1751067046307,-460.0,0.00019452,2]
[368225036,1751067046316,-460.0,0.00019452,2]
[368225038,1751067046325,-460.0,0.00019452,2]
[368225040,1751067046336,-460.0,0.00019452,2]
[368225042,1751067046345,-322.66289826,0.00019452,2]
[368225044,1751067046354,-1015.82,0.00019452,2]
[368225046,1751067046363,-460.0,0.00019452,2]
[368225048,1751067046373,-460.0,0.00019452,2]
[368225049,1751067046382,-460.0,0.00019452,2]
[368225051,1751067046391,-460.0,0.00019452,2]
[368225053,1751067046400,-460.0,0.00019452,2]
[368225056,1751067046411,-460.0,0.00019452,2]
[368225058,1751067046423,-253.34835268,0.00019452,2]
[368225059,1751067046432,-460.0,0.00019452,2]
[368225062,1751067046441,-350.0,0.00019452,2]
[368225064,1751067046451,-460.0,0.00019452,2]
[368225065,1751067046462,-412.53466667,0.00019452,2]
[368225067,1751067046471,-460.0,0.00019452,2]
[368225070,1751067046481,-460.0,0.00019452,2]
[368225072,1751067046491,-460.0,0.00019452,2]
[368225073,1751067046500,-460.0,0.00019452,2]
[368225075,1751067046509,-460.0,0.00019452,2]
[368225077,1751067046519,-460.0,0.00019452,2]
[368225079,1751067046528,-460.0,0.00019452,2]
[368225081,1751067046537,-460.0,0.00019452,2]
[368225082,1751067046546,-460.0,0.00019452,2]
[368225083,1751067046555,-460.0,0.00019452,2]
[368225085,1751067046565,-460.0,0.00019452,2]
[368225087,1751067046574,-460.0,0.00019452,2]
[368225089,1751067046584,-460.0,0.00019452,2]
[368225091,1751067046593,-460.0,0.00019452,2]
[368225093,1751067046602,-304.11744471,0.00019452,2]
[368225094,1751067046611,-460.0,0.00019452,2]
[368225095,1751067046620,-435.65884107,0.00019452,2]
[368225096,1751067046630,-460.0,0.00019452,2]
[368225097,1751067046639,-460.0,0.00019452,2]
[368225098,1751067046648,-460.0,0.00019452,2]
[368225099,1751067046657,-460.0,0.00019452,2]
[368225100,1751067046667,-460.0,0.00019452,2]
[368225101,1751067046676,-460.0,0.00019452,2]
[368225102,1751067046685,-578.08,0.00019452,2]
[368225103,1751067046695,-170.46170455,0.00019452,2]
[368225104,1751067046704,-460.0,0.00019452,2]
[368225105,1751067046713,-460.0,0.00019452,2]
[368225106,1751067046722,-461.17896764,0.00019452,2]
[368225107,1751067046731,-462.32889368,0.00019452,2]
[368225108,1751067046740,-464.23988757,0.00019452,2]
[368225109,1751067046749,-460.0,0.00019452,2]
[368225110,1751067046758,-462.08451736,0.00019452,2]
[368225111,1751067046767,-460.0,0.00019452,2]
[368225112,1751067046776,-460.0,0.00019452,2]
[368225113,1751067046786,-460.0,0.00019452,2]
[368225114,1751067046795,-460.0,0.00019452,2]
[368225115,1751067046805,-460.0,0.00019452,2]
[368225116,1751067046814,-460.0,0.00019452,2]
[368225117,1751067046823,-460.0,0.00019452,2]
[368225118,1751067046832,-460.0,0.00019452,2]
[368225119,1751067046841,-410.0,0.00019452,2]
[368225120,1751067046850,-460.0,0.00019452,2]
[368225121,1751067046859,-460.0,0.00019452,2]
[368225122,1751067046869,-460.0,0.00019452,2]
[368225123,1751067046993,-761.11,0.00019452,2]
[368225124,1751067047003,-313.48931798,0.00019452,2]
[368225125,1751067047012,-460.0,0.00019452,2]
[368225126,1751067047020,-460.0,0.00019452,2]
[368225127,1751067047029,-460.0,0.00019452,2]
[368225128,1751067047039,-460.0,0.00019452,2]
[368225129,1751067047048,-150.67399097,0.00019452,2]
[368225130,1751067047057,-460.0,0.00019452,2]
[368225131,1751067047066,-460.0,0.00019452,2]
[368225133,1751067047075,-460.0,0.00019452,2]
[368225135,1751067047085,-460.0,0.00019452,2]
[368225137,1751067047094,-460.0,0.00019452,2]
[368225139,1751067047103,-460.0,0.00019452,2]
[368225141,1751067047113,-460.0,0.00019452,2]
[368225142,1751067047122,-460.0,0.00019452,2]
[368225143,1751067047131,-422.98057995,0.00019452,2]
[368225144,1751067047140,-460.0,0.00019452,2]
[368225145,1751067047150,-460.0,0.00019452,2]
[368225146,1751067047159,-460.0,0.00019452,2]
[368225147,1751067047168,-460.0,0.00019452,2]
[368225148,1751067047178,-460.0,0.00019452,2]
[368225149,1751067047187,-460.0,0.00019452,2]
[368225150,1751067047196,-460.0,0.00019452,2]
[368225151,1751067047205,-460.0,0.00019452,2]
[368225152,1751067047214,-460.0,0.00019452,2]
[368225153,1751067047223,-545.05932215,0.00019452,2]
[368225154,1751067047233,-460.0,0.00019452,2]
[368225155,1751067047242,-460.0,0.00019452,2]
[368225156,1751067047251,-460.0,0.00019452,2]
[368225157,1751067047260,-460.0,0.00019452,2]
[368225158,1751067047270,-462.12288505,0.00019452,2]
[368225159,1751067047279,-460.0,0.00019452,2]
[368225160,1751067047288,-460.0,0.00019452,2]
[368225161,1751067047298,-460.0,0.00019452,2]
[368225162,1751067047307,-460.0,0.00019452,2]
[368225163,1751067047317,-465.47019445,0.00019452,2]
[368225164,1751067047326,-460.0,0.00019452,2]
[368225165,1751067047336,-460.0,0.00019452,2]
[368225166,1751067047345,-460.0,0.00019452,2]
[368225167,1751067047355,-460.0,0.00019452,2]
[368225168,1751067047363,-460.0,0.00019452,2]
[368225169,1751067047373,-460.0,0.00019452,2]
[368225170,1751067047382,-460.0,0.00019452,2]
[368225171,1751067047392,-460.0,0.00019452,2]
[368225172,1751067047402,-460.0,0.00019452,2]
[368225173,1751067047413,-460.0,0.00019452,2]
[368225174,1751067047423,-460.0,0.00019452,2]
[368225175,1751067047432,-460.0,0.00019452,2]
[368225176,1751067047441,-460.0,0.00019452,2]
[368225177,1751067047451,-460.0,0.00019452,2]
[368225178,1751067047460,-460.0,0.00019452,2]
[368225179,1751067047469,-460.0,0.00019452,2]
[368225180,1751067047478,-460.0,0.00019452,2]
[368225181,1751067047488,-460.0,0.00019452,2]
[368225182,1751067047499,-460.0,0.00019452,2]
[368225183,1751067047508,-2393.42,0.00019452,2]
[368225184,1751067047518,-460.0,0.00019452,2]
[368225185,1751067047528,-540.65449836,0.00019452,2]
[368225186,1751067047538,-460.0,0.00019452,2]
[368225187,1751067047548,-460.0,0.00019452,2]
[368225188,1751067047557,-460.0,0.00019452,2]
[368225189,1751067047567,-281.35521654,0.00019452,2]
[368225190,1751067047577,-460.0,0.00019452,2]
[368225191,1751067047588,-461.97802635,0.00019452,2]
[368225192,1751067047597,-460.0,0.00019452,2]
[368225193,1751067047607,-460.0,0.00019452,2]
[368225194,1751067047616,-500.0,0.00019452,2]
[368225195,1751067047626,-628.54,0.00019452,2]
[368225196,1751067047636,-465.74143929,0.00019452,2]
[368225197,1751067047645,-460.0,0.00019452,2]
[368225198,1751067047655,-1967.24,0.00019452,2]
[368225199,1751067047665,-460.0,0.00019452,2]
[368225200,1751067047674,-460.0,0.00019452,2]
[368225201,1751067047684,-460.0,0.00019452,2]
[368225202,1751067047694,-460.0,0.00019452,2]
[368225203,1751067047704,-3246.95,0.00019452,2]
[368225204,1751067047715,-460.0,0.00019452,2]
[368225205,1751067047724,-460.0,0.00019452,2]
[368225206,1751067047733,-460.0,0.00019452,2]
[368225207,1751067047742,-460.0,0.00019452,2]
[368225208,1751067047752,-514.11,0.00019452,2]
[368225209,1751067047761,-460.0,0.00019452,2]
[368225210,1751067047771,-460.0,0.00019452,2]
[368225211,1751067047780,-633.71,0.00019452,2]
[368225212,1751067047789,-460.0,0.00019452,2]
[368225213,1751067047800,-460.0,0.00019452,2]
[368225214,1751067047810,-635.87,0.00019452,2]
[368225215,1751067047819,-468.70686131,0.00019452,2]
[368225216,1751067047829,-460.0,0.00019452,2]
[368225217,1751067047840,-460.0,0.00019452,2]
[368225218,1751067047849,-543.15,0.00019452,2]
[368225219,1751067047858,-682.78,0.00019452,2]
[368225220,1751067047867,-1995.88,0.00019452,2]
[368225221,1751067047876,-460.0,0.00019452,2]
[368225222,1751067047885,-460.0,0.00019452,2]
[368225223,1751067047895,-460.0,0.00019452,2]
[368225224,1751067047904,-460.0,0.00019452,2]
[368225225,1751067047913,-460.0,0.00019452,2]
[368225226,1751067047923,-460.0,0.00019452,2]
[368225227,1751067047933,-1512.96,0.00019452,2]
[368225228,1751067047944,-460.0,0.00019452,2]
[368225229,1751067047955,-460.0,0.00019452,2]
[368225230,1751067047964,-460.0,0.00019452,2]
[368225231,1751067047973,-460.0,0.00019452,2]
[368225232,1751067047983,-1281.11,0.00019452,2]
[368225233,1751067047992,-462.11840168,0.00019452,2]
[368225234,1751067048002,-440.0,0.00019452,2]
[368225235,1751067048012,-3202.48,0.00019452,2]
[368225236,1751067048022,-874.26,0.00019452,2]
[368225237,1751067048032,-688.63,0.00019452,2]
[368225238,1751067048041,-460.0,0.00019452,2]
[368225239,1751067048051,-460.0,0.00019452,2]
[368225240,1751067048061,-460.0,0.00019452,2]
[368225241,1751067048070,-1849.72,0.00019452,2]
[368225242,1751067048080,-3710.67,0.00019452,2]
[368225243,1751067048090,-463.13074055,0.00019452,2]
[368225244,1751067048099,-3343.02,0.00019452,2]
[368225245,1751067048109,-460.0,0.00019452,2]
[368225246,1751067048118,-460.0,0.00019452,2]
[368225247,1751067048127,-476.77056905,0.00019452,2]
[368225248,1751067048137,-460.0,0.00019452,2]
[368225249,1751067048146,-462.31770727,0.00019452,2]
[368225250,1751067048155,-460.0,0.00019452,2]
[368225251,1751067048164,-692.67,0.00019452,2]
[368225252,1751067048175,-460.0,0.00019452,2]
[368225253,1751067048185,-460.0,0.00019452,2]
[368225254,1751067048194,-392.2592204,0.00019452,2]
[368225255,1751067048203,-757.78,0.00019452,2]
[368225256,1751067048212,-588.47,0.00019452,2]
[368225257,1751067048222,-569.96,0.00019452,2]
[368225258,1751067048231,-460.0,0.00019452,2]
[368225259,1751067048241,-460.0,0.00019452,2]
[368225260,1751067048251,-460.0,0.00019452,2]
[368225261,1751067048260,-460.0,0.00019452,2]
[368225262,1751067048270,-460.0,0.00019452,2]
[368225263,1751067048280,-460.0,0.00019452,2]
[368225264,1751067048289,-2069.7,0.00019452,2]
[368225265,1751067048298,-460.0,0.00019452,2]
[368225266,1751067048308,-465.98167006,0.00019452,2]
[368225267,1751067048318,-460.0,0.00019452,2]
[368225268,1751067048327,-500.80343711,0.00019452,2]
[368225269,1751067048337,-460.0,0.00019452,2]
[368225270,1751067048346,-1455.3,0.00019452,2]
[368225271,1751067048355,-737.53,0.00019452,2]
[368225272,1751067048365,-460.0,0.00019452,2]
[368225273,1751067048374,-460.0,0.00019452,2]
[368225274,1751067048383,-460.0,0.00019452,2]
[368225275,1751067048393,-460.0,0.00019452,2]
[368225276,1751067048402,-460.0,0.00019452,2]
[368225277,1751067048412,-2482.96,0.00019452,2]
[368225278,1751067048423,-460.0,0.00019452,2]
[368225279,1751067048432,-460.0,0.00019452,2]
[368225280,1751067048442,-460.0,0.00019452,2]
[368225281,1751067048451,-460.0,0.00019452,2]
[368225282,1751067048461,-460.0,0.00019452,2]
[368225283,1751067048471,-545.31,0.00019452,2]
[368225284,1751067048480,-703.59,0.00019452,2]
[368225285,1751067048489,-460.0,0.00019452,2]
[368225286,1751067048498,-1235.05,0.00019452,2]
[368225287,1751067048508,-460.0,0.00019452,2]
[368225288,1751067048517,-460.0,0.00019452,2]
[368225289,1751067048527,-612.36,0.00019452,2]
[368225290,1751067048536,-460.0,0.00019452,2]
[368225291,1751067048545,-975.89,0.00019452,2]
[368225292,1751067048554,-460.0,0.00019452,2]
[368225293,1751067048564,-460.0,0.00019452,2]
[368225294,1751067048573,-460.0,0.00019452,2]
[368225295,1751067048583,-916.06,0.00019452,2]
[368225296,1751067048593,-460.0,0.00019452,2]
[368225297,1751067048602,-460.0,0.00019452,2]
[368225298,1751067048611,-481.89417739,0.00019452,2]
[368225299,1751067048620,-586.65,0.00019452,2]
[368225300,1751067048630,-460.0,0.00019452,2]
[368225301,1751067048639,-771.3,0.00019452,2]
[368225302,1751067048648,-460.0,0.00019452,2]
[368225303,1751067048658,-460.0,0.00019452,2]
[368225304,1751067048668,-460.0,0.00019452,2]
[368225305,1751067048678,-460.0,0.00019452,2]
[368225306,1751067048687,-343.27474376,0.00019452,2]
[368225307,1751067048696,-460.0,0.00019452,2]
[368225308,1751067048706,-460.0,0.00019452,2]
[368225309,1751067048716,-2809.31,0.00019452,2]
[368225310,1751067048726,-460.0,0.00019452,2]
[368225311,1751067048736,-460.0,0.00019452,2]
[368225312,1751067048745,-2330.81,0.00019452,2]
[368225313,1751067048754,-460.0,0.00019452,2]
[368225314,1751067048764,-460.0,0.00019452,2]
[368225315,1751067048773,-886.92,0.00019452,2]
[368225316,1751067048783,-430.0,0.00019452,2]
[368225317,1751067048792,-460.0,0.00019452,2]
[368225318,1751067048802,-460.0,0.00019452,2]
[368225319,1751067048811,-460.0,0.00019452,2]
[368225320,1751067048821,-460.0,0.00019452,2]
[368225321,1751067048830,-460.0,0.00019452,2]
[368225322,1751067048839,-460.0,0.00019452,2]
[368225323,1751067048849,-316.8719568,0.00019452,2]
[368225324,1751067048859,-460.0,0.00019452,2]
[368225325,1751067048868,-641.01,0.00019452,2]
[368225326,1751067048878,-460.0,0.00019452,2]
[368225327,1751067048887,-460.0,0.00019452,2]
[368225328,1751067048897,-1214.96,0.00019452,2]
[368225329,1751067048907,-460.0,0.00019452,2]
[368225330,1751067048915,-460.0,0.00019452,2]
[368225331,1751067048925,-1127.93,0.00019452,2]
[368225332,1751067048934,-574.8,0.00019452,2]
[368225333,1751067048944,-460.0,0.00019452,2]
[368225334,1751067048953,-460.0,0.00019452,2]
[368225335,1751067048963,-460.0,0.00019452,2]
[368225336,1751067048972,-3199.89,0.00019452,2]
[368225337,1751067048982,-460.0,0.00019452,2]
[368225338,1751067048991,-460.0,0.00019452,2]
[368225339,1751067049002,-5340.97,0.00019452,2]
[368225340,1751067049011,-460.0,0.00019452,2]
[368225341,1751067049021,-6065.13,0.00019452,2]
[368225342,1751067049030,-460.0,0.00019452,2]
[368225343,1751067049039,-460.0,0.00019452,2]
[368225344,1751067049049,-840.37,0.00019452,2]
[368225345,1751067049058,-460.0,0.00019452,2]
[368225346,1751067049068,-460.0,0.00019452,2]
[368225347,1751067049078,-460.0,0.00019452,2]
[368225348,1751067049088,-460.0,0.00019452,2]
[368225349,1751067049097,-579.16,0.00019452,2]
[368225350,1751067049107,-3251.41,0.00019452,2]
[368225351,1751067049116,-460.0,0.00019452,2]
[368225352,1751067049125,-465.58509091,0.00019452,2]
[368225353,1751067049134,-460.0,0.00019452,2]
[368225354,1751067049144,-460.0,0.00019452,2]
[368225355,1751067049154,-464.37161255,0.00019452,2]
[368225356,1751067049163,-460.0,0.00019452,2]
[368225357,1751067049173,-460.0,0.00019452,2]
[368225358,1751067049182,-366.05690992,0.00019452,2]
[368225359,1751067049191,-1365.34,0.00019452,2]
[368225360,1751067049201,-2771.75170985,0.00019478,2]
[368225361,1751067049210,-396.0,0.00019479,2]
[368225362,1751067049219,-500.0,0.00019516,2]
[368225363,1751067049228,-263.86547896,0.0001961,2]
[368225364,1751067049237,-500.0,0.00019696,2]
[368225365,1751067049247,-304.88004104,0.00019703,2]
[368225366,1751067049256,-500.0,0.00019703,2]
[368225367,1751067049265,-500.0,0.00019703,2]
[368225368,1751067049275,-1000.0,0.00019721,2]
[368225369,1751067049284,-500.0,0.00019721,2]
[368225370,1751067049292,-1000.0,0.00019721,2]
[368225371,1751067049301,-503.32406499,0.00019721,2]
[368225372,1751067049310,-502.57950737,0.00019721,2]
[368225373,1751067049320,-1000.0,0.00019721,2]
[368225374,1751067049329,-500.0,0.00019721,2]
[368225375,1751067049338,-1000.0,0.00019721,2]
[368225376,1751067049347,-1000.43898569,0.00019721,2]
[368225377,1751067049356,-500.0,0.00019721,2]
[368225378,1751067049365,-506.37154004,0.00019721,2]
[368225379,1751067049375,-881.28953766,0.00019721,2]
[368225380,1751067049384,-1000.0,0.00019721,2]
[368225381,1751067049393,-1000.0,0.00019721,2]
[368225382,1751067049403,-1000.0,0.00019721,2]
[368225383,1751067049415,-500.0,0.00019721,2]
[368225384,1751067049425,-980.65187058,0.00019721,2]
[368225385,1751067049435,-1000.0,0.00019721,2]
[368225386,1751067049445,-1000.0,0.00019721,2]
[368225387,1751067049455,-500.0,0.00019721,2]
[368225388,1751067049464,-1000.0,0.00019721,2]
[368225389,1751067049474,-1000.0,0.00019721,2]
[368225390,1751067049483,-299.46553355,0.00019726,2]
[368225391,1751067049494,-460.0,0.00019726,2]
[368225392,1751067049503,-460.0,0.00019726,2]
[368225393,1751067049512,-460.0,0.00019726,2]
[368225394,1751067049522,-330.09404417,0.00019726,2]
[368225395,1751067049531,-460.0,0.00019726,2]
[368225396,1751067049540,-460.0,0.00019726,2]
[368225397,1751067049550,-460.0,0.00019726,2]
[368225398,1751067049559,-460.0,0.00019726,2]
[368225399,1751067049569,-460.0,0.00019726,2]
[368225400,1751067049578,-460.0,0.00019726,2]
[368225401,1751067049589,-460.0,0.00019726,2]
[368225402,1751067049598,-460.0,0.00019726,2]
[368225403,1751067049607,-460.0,0.00019726,2]
[368225404,1751067049617,-460.0,0.00019726,2]
[368225405,1751067049625,-500.0,0.00019726,2]
[368225406,1751067049635,-910.72,0.00019726,2]
[368225407,1751067049644,-552.62,0.00019726,2]
[368225408,1751067049653,-460.0,0.00019726,2]
[368225409,1751067049662,-460.0,0.00019726,2]
[368225410,1751067049671,-460.0,0.00019726,2]
[368225411,1751067049682,-460.0,0.00019726,2]
[368225412,1751067049691,-460.0,0.00019726,2]
[368225413,1751067049703,-1015.82,0.00019726,2]
[368225414,1751067049712,-460.0,0.00019726,2]
[368225415,1751067049833,-350.0,0.00019726,2]
[368225416,1751067049843,-460.0,0.00019726,2]
[368225417,1751067049854,-460.0,0.00019726,2]
[368225418,1751067049863,-460.0,0.00019726,2]
[368225419,1751067049873,-460.0,0.00019726,2]
[368225420,1751067049882,-460.0,0.00019726,2]
[368225421,1751067049891,-460.0,0.00019726,2]
[368225422,1751067049901,-460.0,0.00019726,2]
[368225423,1751067049910,-460.0,0.00019726,2]
[368225424,1751067049919,-460.0,0.00019726,2]
[368225425,1751067049928,-460.0,0.00019726,2]
[368225426,1751067049938,-460.0,0.00019726,2]
[368225427,1751067049948,-460.0,0.00019726,2]
[368225428,1751067049956,-460.0,0.00019726,2]
[368225429,1751067049966,-460.0,0.00019726,2]
[368225430,1751067049975,-460.0,0.00019726,2]
[368225431,1751067049984,-460.0,0.00019726,2]
[368225432,1751067049995,-505.97894725,0.00019726,2]
[368225433,1751067050004,-460.0,0.00019726,2]
[368225434,1751067050014,-471.02291996,0.00019726,2]
[368225435,1751067050024,-460.0,0.00019726,2]
[368225436,1751067050034,-460.0,0.00019726,2]
[368225437,1751067050044,-496.58812931,0.00019726,2]
[368225438,1751067050053,-460.0,0.00019726,2]
[368225439,1751067050062,-460.0,0.00019726,2]
[368225440,1751067050071,-460.0,0.00019726,2]
[368225441,1751067050080,-460.0,0.00019726,2]
[368225442,1751067050090,-460.0,0.00019726,2]
[368225443,1751067050100,-460.0,0.00019726,2]
[368225444,1751067050109,-460.0,0.00019726,2]
[368225445,1751067050118,-460.0,0.00019726,2]
[368225446,1751067050128,-460.0,0.00019726,2]
[368225447,1751067050138,-461.72103532,0.00019726,2]
[368225448,1751067050147,-460.0,0.00019726,2]
[368225449,1751067050157,-460.0,0.00019726,2]
[368225450,1751067050166,-761.11,0.00019726,2]
[368225451,1751067050176,-462.09312856,0.00019726,2]
[368225452,1751067050185,-460.0,0.00019726,2]
[368225453,1751067050194,-460.0,0.00019726,2]
[368225454,1751067050203,-460.0,0.00019726,2]
[368225455,1751067050213,-460.0,0.00019726,2]
[368225456,1751067050222,-460.0,0.00019726,2]
[368225457,1751067050232,-460.0,0.00019726,2]
[368225458,1751067050241,-188.72126539,0.00019726,2]
[368225459,1751067050251,-460.0,0.00019726,2]
[368225460,1751067050260,-460.0,0.00019726,2]
[368225461,1751067050269,-460.0,0.00019726,2]
[368225462,1751067050278,-460.0,0.00019726,2]
[368225463,1751067050287,-460.0,0.00019726,2]
[368225464,1751067050297,-460.0,0.00019726,2]
[368225465,1751067050306,-460.0,0.00019726,2]
[368225466,1751067050316,-460.0,0.00019726,2]
[368225467,1751067050326,-460.0,0.00019726,2]
[368225468,1751067050336,-460.0,0.00019726,2]
[368225469,1751067050346,-460.0,0.00019726,2]
[368225470,1751067050355,-460.0,0.00019726,2]
[368225471,1751067050365,-179.77402267,0.00019726,2]
[368225472,1751067050375,-460.0,0.00019726,2]
[368225473,1751067050384,-460.0,0.00019726,2]
[368225474,1751067050393,-460.0,0.00019726,2]
[368225475,1751067050402,-460.0,0.00019726,2]
[368225476,1751067050414,-460.0,0.00019726,2]
[368225477,1751067050424,-460.0,0.00019726,2]
[368225478,1751067050433,-460.0,0.00019726,2]
[368225479,1751067050443,-460.0,0.00019726,2]
[368225480,1751067050452,-460.0,0.00019726,2]
[368225481,1751067050462,-460.0,0.00019726,2]